Cogmind - Beta 17 @@@ ROGUE MODE // 2026.07.09 @ 08:51:19 Player: hanzu Result: Destroyed by 48-BTJ(R) with Subdweller Laser Performance ------------- Evolutions (0) 0 Regions Visited (2) 400 Robots Destroyed (30) 150 Value Destroyed (837) 837 Prototype IDs (16) 320 Alien Tech Used (0) 0 Bonus (0) 0 TOTAL SCORE: 1707 Bonus ------- None Cogmind --------- Core Integrity 0/250 Matter 230/300 Energy 100/100 System Corruption 0% Temperature Cool (6) Movement Hovering (240) Ox3 Location -10/Subcaves Parts ------- > --- POWER (1) -------- (None) > --- PROPULSION (2) --- Airjet (fused) > --- UTILITY (2) ------ Large Storage Unit Self-contained Transmogrifier > --- WEAPON (2) ------- Blade Saw (fused) Great Axe (fused) > --- INVENTORY (15) --- Light Nuclear Core Heat Sink Improved Heat Sink Large Matter Pod (150) Makeshift Light Armor Plating Beam Cannon Beam Cannon Beam Cannon Beam Cannon Beam Cannon Subdweller Beam Cannon Battle Cannon Battle Cannon Peak State ------------ > --- POWER ------------ Improved Ion Engine > --- PROPULSION ------- Light Treads Aerolev Unit > --- UTILITY ---------- Large Storage Unit Self-contained Transmogrifier > --- WEAPON ----------- Barrage Gun Great Axe > --- INVENTORY -------- Light Nuclear Core Heat Sink Improved Heat Sink Large Matter Pod Makeshift Light Armor Plating Beam Cannon Beam Cannon Beam Cannon Beam Cannon Beam Cannon Subdweller Beam Cannon Battle Cannon Battle Cannon Grenade Launcher Grenade Launcher [Rating: 26] Favorites ----------- Power Ion Engine Engine Ion Engine Power Core Nuclear Core Propulsion Light Treads Treads Light Treads Wheel Subdweller Monowheel Hover Unit Aerolev Unit Utility Large Storage Unit Device Self-contained Transmogrifier Storage Large Storage Unit Protection Light Armor Plating Weapon Beam Cannon Energy Gun Heavy EM Pulse Gun Energy Cannon Beam Cannon Ballistic Gun Barrage Gun Ballistic Cannon Battle Cannon Launcher Grenade Launcher Slashing Weapon Great Axe Build | -11 -10 -10 ------- Run | Yrd Mat Sub Slots Evolved . | . . . Power . | . . . Propulsion . | . . . Utility . | . . . Weapon . | . . . Parts Attached 22 | 6 5 11 Power 1 | 1 . . Engine 1 | 1 . . Core . | . . . Reactor . | . . . Propulsion 4 | 2 . 2 Treads 2 | 2 . . Leg . | . . . Wheel 2 | . . 2 Hover . | . . . Flight . | . . . Utility 7 | 1 2 4 Device 2 | . . 2 Storage 2 | 1 1 . Processor . | . . . Hackware . | . . . Protection 3 | . 1 2 Artifact . | . . . Weapon 10 | 2 3 5 Energy Gun . | . . . Energy Cannon 2 | . 2 . Ballistic Gun 4 | 2 . 2 Ballistic Cannon 2 | . . 2 Launcher 2 | . 1 1 Special Weapon . | . . . Impact Weapon . | . . . Slashing Weapon . | . . . Piercing Weapon . | . . . Special Melee Weapon . | . . . Unidentified Prototypes 1 | . . 1 Parts Lost 4 | . . 4 Power 1 | . . 1 Propulsion 2 | . . 2 Utility . | . . . Weapon 1 | . . 1 Highest Loss Streak 1 | . . 1 To Critical Strikes . | . . . Average Backups 12 | . 8 14 Power . | . . 1 Propulsion . | . . . Utility 3 | . 2 3 Weapon 8 | . 5 10 Tool/Special . | . . . Unused Backups 13 | . . 13 Power 1 | . . 1 Propulsion . | . . . Utility 3 | . . 3 Weapon 9 | . . 9 Tool/Special . | . . . Average Slot Usage (%) 94 | . 98 92 Engine 13 | . 14 13 Treads 21 | . 28 18 Hover 1 | . . 1 Device 3 | . . 5 Storage 14 | . 14 14 Protection 10 | . 13 8 Energy Cannon 9 | . 16 6 Ballistic Gun 9 | . 11 8 Ballistic Cannon 6 | . . 8 Slashing Weapon 2 | . . 3 Peak Build Rating 26 | 6 8 26 Average Rating 12 | 4 7 15 On Entrance 4 | . 6 8 Avg Prop Armor Cover (%) 10 | . . 10 Naked Turns . | . . . Heaviest Build 37 | 12 34 37 Greatest Support 40 | 40 40 40 Greatest Overweight (x) 4 | . . 4 Average Overweight (x) . | . . . Largest Inventory Capacity 15 | 8 15 15 Average Capacity 14 | 7 13 15 Most Carried 15 | . 15 15 Average Carried 12 | . 8 14 Final Capacity 15 | 8 15 15 Final Carried 14 | . 14 13 Transmogrified Parts 10 | . . 10 Integrity Recovered 165 | . . 165 Class Distribution -------------------- 100% | Mutant Dominant Class ---------------- Mutant | -10/Materials Mutant | -10/Subcaves Resources | -11 -10 -10 ----------- Run | Yrd Mat Sub Matter Collected 940 | 199 319 422 Remotely . | . . . Salvage Created 830 | . 316 514 Parts 47 | . 19 28 Haulers Intercepted 1 | . 1 . Recyclers Shooed 1 | . 1 . Parts Field Recycled . | . . . Retrieved Matter . | . . . Parts Self-Destructed 18 | . . 18 Prevented . | . . . Parts Restored . | . . . Kills | -11 -10 -10 ------- Run | Yrd Mat Sub Combat Hostiles Destroyed 23 | . 7 16 Guns 3 | . 2 1 Cannons 16 | . 5 11 AOE 3 | . . 3 Classes Destroyed 7 | . 5 2 Hauler 1 | . 1 . Operator 1 | . 1 . Turret 2 | . . 2 Watcher 3 | . 3 . Swarmer 7 | . 3 4 Grunt 8 | . 4 4 Subdweller 8 | . . 8 Best Kill Streak 5 | . 3 5 Combat Bots Only 5 | . 2 5 Max Kills in Single Turn 1 | . 1 1 Gunslinging . | . . . Exploded 1 | . . 1 Melee . | . . . Uniques/NPCs Destroyed . | . . . Combat | -11 -10 -10 -------- Run | Yrd Mat Sub Hostile Shots Fired 153 | . 23 130 Missed 61 | . 10 51 Hits 92 | . 13 79 Projectile 92 | . 13 79 Damage Taken 1201 | . 123 1078 Core 255 | . 25 230 Absorbed by Shields . | . . . Core Remaining (%) 100 | 100 . . Volleys Fired 98 | . 30 68 Largest 2 | . 2 2 Hottest 120 | . 120 120 Shots Fired 175 | . 58 117 Gun 46 | . 28 18 Cannon 113 | . 28 85 Launcher 16 | . 2 14 Special . | . . . Kinetic 65 | . 28 37 Thermal 94 | . 28 66 Explosive 16 | . 2 14 Electromagnetic . | . . . Robot Hit Streak 8 | . 7 8 Robot Miss Streak 3 | . 3 2 Penetration Max . | . . . Secondary Targets . | . . . Shots Hit Robots 100 | . 31 69 Core Hits 44 | . 18 26 Critical Kills 2 | . . 2 Critical Parts Destroyed . | . . . Critical Strikes 2 | . . 2 Meltdown 2 | . . 2 Melee Attacks 5 | . . 5 Impact . | . . . Slashing 5 | . . 5 Piercing . | . . . Sneak Attacks . | . . . Combat Hostiles . | . . . Follow-up Attacks 1 | . . 1 Damage Inflicted 2074 | . 434 1640 Guns 299 | . 184 115 Cannons 1208 | . 243 965 Explosions 493 | . 7 486 Melee 74 | . . 74 Ramming . | . . . Kinetic 542 | . 184 358 Thermal 965 | . 243 722 Explosive 493 | . 7 486 Electromagnetic . | . . . Impact . | . . . Slashing 74 | . . 74 Piercing . | . . . Highest Corruption . | . . . Average Corruption . | . . . Corruption Purged . | . . . Corruption Blocked . | . . . Overload Shots . | . . . Overflow Damage 33 | . 16 17 Projectiles 33 | . 16 17 Explosions . | . . . Melee . | . . . Knockbacks 3 | . . 3 Impact . | . . . Kinetic 3 | . . 3 Secondary . | . . . Self-Inflicted Damage 29 | . . 29 Shots 2 | . . 2 Rammed . | . . . Targets Rammed . | . . . Kicked . | . . . Crushed . | . . . Highest Temperature 345 | . 345 143 Average Temperature 76 | . 92 52 Received Heat Transfer 333 | . 45 288 Effects 1 | . 1 . Energy Bleed 1 | . 1 . Siege Activations . | . . . Martial Activations . | . . . Shielding Activations . | . . . Robots Disrupted . | . . . Combat Hostiles . | . . . Robots Corrupted . | . . . Combat Hostiles . | . . . Parts Fried . | . . . Impact Corruptions . | . . . Robots Melted 2 | . . 2 Combat Hostiles 1 | . . 1 Parts Melted . | . . . Heat Transferred 2035 | . 518 1517 Parts Sabotaged . | . . . Parts Stolen . | . . . Parts Stripped . | . . . Power Chain Reactions . | . . . Alert | -11 -10 -10 ------- Run | Yrd Mat Sub Maximum Alert Level . | . . . Low Security (%) 100 | 100 100 . Level 1 . | . . . Level 2 . | . . . Level 3 . | . . . Level 4 . | . . . Level 5 . | . . . High Security . | . . . Max Security . | . . . Peak Influence 98 | . 98 . Initial . | . . . Average 18 | . 19 . Influence Increases 504 | . 254 250 Destroy 0b10 Robot/C 340 | . 140 200 Destroy 0b10 Robot/NC 25 | . 25 . Destroy Leader 48 | . 28 20 Successful Hack 30 | . 30 . Disable Machine 15 | . 15 . Destroy Structure 16 | . 16 . Lose Combat Pursuer 30 | . . 30 Influence Decreases 504 | . 254 250 Time Decay 504 | . 254 250 Squads Dispatched . | . . . Investigation . | . . . Extermination . | . . . Reinforcement . | . . . Assault . | . . . Garrison . | . . . Intercept . | . . . Searches Triggered . | . . . Construction Impeded . | . . . Haulers Reinforced . | . . . Active Scanning Responses . | . . . Cargo Convoy Interrupts . | . . . Stealth | -11 -10 -10 --------- Run | Yrd Mat Sub Distress Signals 2 | . 2 . Communications Jammed . | . . . Distress Signals . | . . . Times Spotted 33 | . 12 21 Peak Tracking Total 5 | . 3 5 Tactical Retreats 1 | . . 1 Traps | -11 -10 -10 ------- Run | Yrd Mat Sub Traps Triggered 2 | . . 2 Indirectly . | . . . Trap Hack Attempts . | . . . Triggered . | . . . Disarmed . | . . . Reprogrammed . | . . . Reused . | . . . Traps Extracted . | . . . Installed . | . . . Triggered . | . . . Machines | -11 -10 -10 ---------- Run | Yrd Mat Sub Machines Disabled 2 | . 1 1 Max in Single Turn 1 | . 1 1 Machines Repaired . | . . . Machines Dismantled . | . . . Machines Sabotaged . | . . . Overloaded Fab Kills . | . . . Hacking | -11 -10 -10 --------- Run | Yrd Mat Sub Machines Accessed 10 | . 7 3 Terminals 6 | . 6 . Fabricators . | . . . Repair Stations . | . . . Recycling Units 1 | . 1 . Scanalyzers . | . . . Garrison Access . | . . . Total Hacks 33 | . 21 12 Successful 21 | . 9 12 Failed 12 | . 12 . Catastrophic 2 | . 2 . Database Lockouts . | . . . Manual 20 | . 20 . Terminals 18 | . 18 . Fabricators . | . . . Repair Stations . | . . . Recycling Units 3 | . 3 . Scanalyzers . | . . . Garrison Access . | . . . Terminal Hacks 12 | . . 12 Record 9 | . . 9 Open Door 1 | . . 1 Proto ID Catalog 1 | . . 1 Release Object 1 | . . 1 Fabricator Hacks . | . . . Repair Station Hacks . | . . . Recycling Unit Hacks 1 | . 1 . Retrieve Components 1 | . 1 . Scanalyzer . | . . . Garrison Access Hacks . | . . . Unauthorized Hacks 8 | . 8 . Terminals 7 | . 7 . Botnet 2 | . 2 . Skim 5 | . 5 . Fabricators . | . . . Repair Stations . | . . . Recycling Units 1 | . 1 . Recyclers 1 | . 1 . Scanalyzers . | . . . Garrison Access . | . . . Data Cores Recovered 1 | . 1 . Used . | . . . Hacking Detections 7 | . 7 . Full Trace Events . | . . . Feedback Events . | . . . Feedback Blocked . | . . . Robot Schematics Acquired . | . . . Robots Built . | . . . Authchips . | . . . Time . | . . . Total Robot Build Rating . | . . . Part Schematics Acquired . | . . . Parts Built . | . . . Authchips . | . . . Time . | . . . Total Part Build Rating . | . . . Part Studies Acquired . | . . . Parts Repaired . | . . . Time . | . . . Parts Recycled . | . . . Recycled Matter . | . . . Retrieved Matter . | . . . Retrieved Components 10 | . 10 . Parts Scanalyzed . | . . . Part Schematics Acquired . | . . . Parts Damaged . | . . . Bothacking | -11 -10 -10 ------------ Run | Yrd Mat Sub Used RIF Installer . | . . . Robots Hacked . | . . . Non-combat . | . . . Combat . | . . . Robot Hacks Applied . | . . . Relay Couplers Released . | . . . Fabnet Peak Effective % . | . . . Robots Rewired . | . . . Allies Hacked . | . . . Hacks Repelled . | . . . Allies | -11 -10 -10 -------- Run | Yrd Mat Sub Total Allies . | . . . Largest Group . | . . . Highest-Rated Group . | . . . Highest-Rated Ally . | . . . Total Orders . | . . . Ally Attacks . | . . . Total Damage . | . . . Kills . | . . . Allies Corrupted . | . . . Allies Melted . | . . . Intel | -11 -10 -10 ------- Run | Yrd Mat Sub Active Infowar (turns) 144 | . . 144 Optics 144 | . . 144 Robot Analysis Total . | . . . Derelict Logs Recovered 2 | . . 2 Drone Launches . | . . . Drone Recoveries . | . . . Exploration | -11 -10 -10 ------------- Run | Yrd Mat Sub Turns Passed 4099 | 66 1133 2900 Spaces Moved 2002 | 39 599 1364 Core 4 | 4 . . Treads 1769 | 35 599 1135 Legs . | . . . Wheels 154 | . . 154 Hover 75 | . . 75 Flight . | . . . Fastest Speed 50 | 50 160 120 Average Speed 182 | 148 160 193 Slowest Speed 300 | 160 160 300 Overloaded Moves . | . . . Propulsion Burnouts . | . . . Robots Hopped . | . . . Potential Cave-ins . | . . . Cave-ins Triggered . | . . . Exploration Rate (%) 56 | 3 82 84 Regions Visited 2 Branch Regions 1 Pre-discovered Areas 2 | . 1 1 Known Exits Taken 1 | . 1 . Unknown Exits Taken 1 | 1 . . Scrap Searched 7 | . . 7 Spaces Dug . | . . . Terrain Destroyed 82 | . 15 67 Melee . | . . . Projectile 1 | . . 1 AOE 81 | . 15 66 Terrain Rammed . | . . . Walls Destroyed . | . . . Machines Disabled . | . . . Actions | -11 -10 -10 --------- Run | Yrd Mat Sub Total 2270 | 44 721 1505 Wait 98 | . 68 30 Move 2000 | 38 598 1364 Hop . | . . . Pick Up 20 | . 14 6 Fast Attach 16 | 6 3 7 Attach 3 | . . 3 Detach 4 | . 2 2 Swap 13 | . 3 10 Drop 14 | . 3 11 Fire 98 | . 30 68 Melee 4 | . . 4 Ram . | . . . Kick . | . . . Crush . | . . . Escape Stasis . | . . . Rewire . | . . . Trap . | . . . Miscellaneous . | . . . Route ------- -11/Scrapyard -10/Materials (discovered 5 exits: *Mat x3 / [*Min] / *Sub) -10/Subcaves (discovered 2 exits: [*Mat] / [*Rec]) History --------- Turn | Location | Event 7 | -11/Scrapyard | Discovered new exit (range 15) 67 | -11/Scrapyard | Entered Materials 316 | -10/Materials | Build established: Mutant 353 | -10/Materials | Discovered new exit (range 8) 580 | -10/Materials | Discovered new exit (range 13) 996 | -10/Materials | Learned Storage stockpile data 1031 | -10/Materials | Learned location of Storage (-7) 1057 | -10/Materials | Learned location of 1 exit from Recycling 1058 | -10/Materials | Discovered new exit (range 14) 1077 | -10/Materials | Learned Storage security intel 1078 | -10/Materials | Identified exit to Materials 1078 | -10/Materials | Identified exit to Subcaves 1079 | -10/Materials | Learned 8 Materials zone layouts 1090 | -10/Materials | Learned Storage emergency access door positions 1200 | -10/Materials | Entered Subcaves 1408 | -10/Subcaves | A swath of the cavern ceiling suddenly collapsed 1566 | -10/Subcaves | Discovered new exit (range 15) 1755 | -10/Subcaves | Shifting Twisted Machinery released Mak. Spear 1760 | -10/Subcaves | Shifting Twisted Machinery released Battle Cannon 2096 | -10/Subcaves | Core integrity fell below 50% 2195 | -10/Subcaves | Learned location of Zion (-6) 2245 | -10/Subcaves | Shifting Twisted Machinery released Mak. Laser 2248 | -10/Subcaves | Shifting Twisted Machinery released Battle Rifle 2308 | -10/Subcaves | A swath of the cavern ceiling suddenly collapsed 2907 | -10/Subcaves | Discovered new exit (range 10) 3155 | -10/Subcaves | Visited 4L-MR0's lab 3171 | -10/Subcaves | Found Prototype Device 3171 | -10/Subcaves | Identified Sfc. Transmogrifier 3958 | -10/Subcaves | Core integrity fell below 20% 4100 | -10/Subcaves | Destroyed by 48-BTJ(R) with Subdweller Laser Last Messages --------------- 03748_ Sfc. Transmogrifier converts Sub. Monowheel into Aerolev Unit. 03865_ Triggered Shrapnel Trap. 03865_ An expanding cloud of shrapnel blasts out in all directions. 03865_ Lgt. Treads destroyed. 03946_ Sfc. Transmogrifier converts Barrage Gun into Plasma Cannon. 03948_ Discarded Plasma Cannon. 03951_ MY-PHT(R) destroyed. 03958_ The unstable cave ceiling collapses. 03959_ Grenade Launcher destroyed. 03960_ CQ-5X6(R) destroyed. 03964_ Sfc. Transmogrifier converts Imp. Ion Engine into Nuclear Core. 03984_ The unstable cave ceiling collapses. 04013_ Sfc. Transmogrifier converts Grenade Launcher into Hvy. EM Pulse Gun. 04014_ Sfc. Transmogrifier converts Aerolev Unit into Airjet. 04047_ Sfc. Transmogrifier converts Nuclear Core into Lgt. Nuclear Core. 04080_ 48-BTJ(R): "SUB#$%&!" 04087_ Sfc. Transmogrifier converts Hvy. EM Pulse Gun into Blade Saw. 04097_ Blade Saw follow-up attack on 48-BTJ(R). 04098_ Lgt. Nuclear Core destroyed. Map ----- +----------------------------------------------------+ | ###???????????????????????#### ###### | | #####?????????? ###???## ## | | ###??????? ### # | | ## #??????? # | | #### #????????# !% | | ##??# ## #??????????# | | #???##### #??????????# #### | | #???????## #???????????????## | | #????????######???????????????# ##### | | #?????????????????????????????## ## ##???? | | #??????????????????????????????##?## #????? | | #????????????????????????????????### ##????? | | #??????????????????????????????### ##?????? | | #?????????????????????????????## ##??????? | | #?????????????????????????????# #???????? | | #?????????????????????????????# ######???? | | #?????????????????????????????# #### ##??? | | #?????????????????????????????### # #??? | | #??????????????????????????????##### ## #??? | | #????????????????##????????????# #### # ##?? | | #??????????????#?#" ??????????## #?# ### | | #??????????????# ## #?????????# ### ### ""# | | ??????????????## < "###??????# ####?# ## # | | ??????????????#" "######## ###?## ##??# | | ####???????????#"""" "## ### ##?? | | ##??????????# """ " @ ## | | ###???????#" "" ####R # | | #???????"""" ???## # # | | ##????????""""?????## ### | | ##?????????"""???????# #??# | | ###??????????""????????# ## ## ##???# | | ##???????????????????? ## ## ### #????? | | #??????????????????? ### ?#####????? | | ##??????????????????#### ####?# ###?????????? | | ???????????????????????##?????########???????????? | | ?????????????????????????????????????????????????? | | ?????????????????????????????????????????????????? | | ?????????????????????????????????????????????????? | | ?????????????????????????????????????????????????? | | ?????????????????????????????????????????????????? | | ?????????????????????????????????????????????????? | | ?????????????????????????????????????????????????? | | ?????????????????????????????????????????????????? | | ?????????????????????????????????????????????????? | | ?????????????????????????????????????????????????? | | ?????????????????????????????????????????????????? | | ?????????????????????????????????????????????????? | | ?????????????????????????????????????????????????? | | ?????????????????????????????????????????????????? | | | +----------------------------------------------------+ Best States ------------- Heat Dissipation 25 Energy Generation 14 Energy Capacity 265 Matter Stores 300 Matter Capacity 300 Sight Range 21 Terrain Scan Density 10 Armor Coverage 150 Evasion (%) 40 Recoil Reduction 2 Item Schematics ----------------- None Robot Schematics ------------------ None Fabricated ------------ Nothing Repaired ---------- Nothing Studied --------- None Alien Tech Used ----------------- None Achievements -------------- Mistaken Identity Challenges ------------ None Game ------ Seed ScrapoidSkeletonRefractor Manual? 0 Play Time 00:22:26 Cumulative 217.5 hours Start 2026.07.09 @ 08:30:11 End 2026.07.09 @ 08:51:19 Sessions 1 Manual Loads 0 Difficulty Rogue Special Mode None Game No. 202 Rogue 202 Adventurer 0 Explorer 0 Win Type - Total 3 Types 3/0/0/0/0/0/0/0/0/0 Lore% 55 Gallery% 60 Achievement% 37 Wizard Run 0 Options --------- Layout 0 ASCII 0 Keyboard 0 Movement Numpad Keybinds 0 Fullscreen 2 Font 18/SmallcapsGlow Map View 76x50 Zoom Use 0% Tactical HUD 1 Map Filters NONE Filters NONE Steam 1 RUN: cdbfd997-d374-403e-9441-04b80bcc9725